[Event "IV Torneo de Semana Santa"]
[Site "Los Llanos de Aridane"]
[Date "2019.04.17"]
[Round "7.4"]
[White "Hidalgo Santana, Fernando"]
[Black "Hernandez Leon, Sergio"]
[Result "1-0"]
[ECO "C95"]
[WhiteElo "2116"]
[BlackElo "2157"]
[Annotator "NA"]
[PlyCount "73"]
[EventDate "2019.04.13"]
[EventType "swiss"]
[EventCountry "ESP"]
[SourceTitle "playchess.com"]
[Source "ChessBase"]
[SourceQuality "1"]
[TimeControl "5400+30"]

1. e4 {[%emt 0:03:09]} e5 {[%emt 0:00:00]} 2. Nf3 {[%emt 0:00:16]} Nc6 {[%emt 0:00:00]} 3. Bb5 {[%emt 0:00:27]} a6 {[%emt 0:00:00]} 4. Ba4 {[%emt 0:00:09]} Nf6 {[%emt 0:00:11]} 5. O-O {[%emt 0:00:25]} b5 {[%emt 0:01:31]} 6. Bb3 {[%emt 0:00:08]} Be7 {[%emt 0:00:09]} 7. Re1 {[%emt 0:00:08]} d6 {[%emt 0:00:11]} 8. h3 {[%emt 0:00:10]} O-O {[%emt 0:00:10]} 9. a4 {[%emt 0:00:21]} Bb7 {[%emt 0:03:28]} 10. c3 {[%emt 0:00:34]} Nb8 {[%emt 0:03:03]} 11. Bc2 {[%emt 0:02:34]} Nbd7 {[%emt 0:01:46]} 12. d4 {[%emt 0:00:31]} c5 {[%emt 0:02:19] C95: Closed Ruy Lopez: Breyer Variation with 10 d4} (12... Re8 13. Nbd2 c5 14. d5 c4 15. b3 cxb3 16. Nxb3 Qc7 17. Be3 Nb6 18. Nbd2 Nfd7 19. axb5 {½-½ (19) Areshchenko,A (2678)-Efimenko,Z (2651) Rivne 2016}) 13. Na3 $146 {[%emt 0:01:26]} ({Predecessor:} 13. d5 c4 14. Be3 Ne8 15. g4 Qc8 16. Na3 Nc7 17. Qe2 g6 18. Rad1 Kh8 19. Kh2 f5 20. exf5 Nxd5 {½-½ (29) Hedlund,T (2561)-Ivanov,A (2507) ICCF email 2014}) 13... cxd4 {[%emt 0:11:03]} 14. cxd4 {[%emt 0:00:20]} b4 {[%emt 0:07:28]} 15. Nc4 {[%emt 0:00:53]} exd4 {[%emt 0:00:42]} 16. Qxd4 {[%emt 0:01:28]} Nc5 {[%emt 0:10:11]} 17. a5 {[%emt 0:16:59]} Ne6 {[%emt 0:07:53]} 18. Qb6 {[%emt 0:01:07]} Qxb6 {[%emt 0:01:15]} 19. Nxb6 {[%emt 0:00:13]} Rad8 {[%emt 0:00:02]} 20. e5 {[%emt 0:17:42]} dxe5 $11 {[%emt 0:05:42]} 21. Nxe5 {[%emt 0:00:48]} Nd4 {[%emt 0:07:48]} 22. Bd1 {[%emt 0:03:47]} Ne4 {[%emt 0:08:31]} 23. Ned7 {[%emt 0:06:48]} Rfe8 {[%emt 0:03:47]} 24. Be3 {[%emt 0:02:36]} Nc6 {[%emt 0:08:10]} 25. Bf3 {[%emt 0:02:08]} Nb8 {[%emt 0:02:30]} 26. Nxb8 {[%emt 0:01:33]} Rxb8 {[%emt 0:04:31]} 27. Bxe4 {[%emt 0:04:20]} Bxe4 {[%emt 0:00:06]} 28. Bf4 {[%emt 0:00:05]} f5 {[%emt 0:00:13]} 29. Bxb8 {[%emt 0:00:16]} Rxb8 {[%emt 0:00:00]} 30. f3 {[%emt 0:01:12]} Bc5+ {[%emt 0:00:06]} 31. Kh1 {[%emt 0:00:15]} Bd3 {[%emt 0:00:31]} 32. Nd7 {[%emt 0:00:21]} Rb5 {[%emt 0:00:02]} 33. Rad1 {[%emt 0:07:30]} Bc4 {[%emt 0:02:43]} 34. Re8+ {[%emt 0:02:26]} Kf7 {[%emt 0:00:02]} 35. Rc8 {[%emt 0:00:02]} Bb3 {[%emt 0:00:18]} 36. Rd3 {[%emt 0:01:39]} Bc4 {[%emt 0:01:25]} 37. Ne5+ {[%emt 0:00:15]} 1-0

[Event "IV Torneo de Semana Santa"]
[Site "Los Llanos de Aridane"]
[Date "2019.04.17"]
[Round "7.6"]
[White "Natalicchio Escalante, Nicolas"]
[Black "Navio Lopez, Manuel"]
[Result "1-0"]
[ECO "E60"]
[WhiteElo "2189"]
[BlackElo "1877"]
[Annotator "NA"]
[PlyCount "125"]
[EventDate "2019.04.13"]
[EventType "swiss"]
[EventCountry "ESP"]
[SourceTitle "playchess.com"]
[Source "ChessBase"]
[SourceQuality "1"]
[TimeControl "5400+30"]

1. b3 {[%emt 0:02:54]} Nf6 {[%emt 0:18:06]} 2. Bb2 {[%emt 0:00:05]} g6 {[%emt 0:00:06]} 3. Nf3 {[%emt 0:00:15]} Bg7 {[%emt 0:00:04]} 4. c4 {[%emt 0:00:03]} O-O {[%emt 0:00:10]} 5. g3 {[%emt 0:01:55]} d6 {[%emt 0:00:05]} 6. d4 {[%emt 0:00:41]} c6 {[%emt 0:00:17] E60: King's Indian: Unusual lines and Fianchetto Variation without Nc3} (6... Nbd7 7. Bg2 c6 8. O-O Re8 9. Nc3 e5 10. e4 exd4 11. Nxd4 Nc5 12. Re1 Ng4 13. h3 Ne5 14. Re3 Qb6 15. Nc2 a5 16. Bf1 Be6 17. Rb1 a4 18. b4 Ncd7 19. Na3 Qxb4 20. Bc1 {½-½ (41) Caruana,F (2816)-Grischuk,A (2766) Paris 2018}) 7. Nc3 {[%emt 0:01:51]} Qa5 {[%emt 0:00:51]} 8. Qd2 {[%emt 0:08:03]} b5 $146 {[%emt 0:04:13]} ({Predecessor:} 8... e5 9. Bg2 Bg4 10. dxe5 dxe5 11. Ne4 Qxd2+ 12. Nfxd2 Nxe4 13. Nxe4 Na6 14. h3 {1-0 (69) Lechtynsky,J (2422)-Kanovsky,D (2396) Czechia 2008}) 9. cxb5 {[%emt 0:02:58]} cxb5 {[%emt 0:00:02]} 10. Bg2 {[%emt 0:05:19]} b4 {[%emt 0:02:51]} 11. Na4 {[%emt 0:01:32]} Ne4 {[%emt 0:03:11]} 12. Qe3 {[%emt 0:01:06]} d5 {[%emt 0:04:09]} 13. Nd2 {[%emt 0:03:25]} Nxd2 {[%emt 0:00:44]} 14. Qxd2 {[%emt 0:00:05]} e6 {[%emt 0:08:08]} 15. O-O {[%emt 0:03:58]} Na6 {[%emt 0:04:36]} 16. a3 {[%emt 0:09:41]} Rb8 {[%emt 0:04:12]} 17. axb4 {[%emt 0:08:30]} Qxb4 {[%emt 0:04:18]} 18. Qxb4 {[%emt 0:00:31]} Nxb4 {[%emt 0:00:13]} 19. Nc5 {[%emt 0:00:13]} Nc6 {[%emt 0:00:05]} 20. e3 {[%emt 0:01:52]} Rd8 {[%emt 0:00:28]} 21. Rfc1 {[%emt 0:00:53]} Bf8 {[%emt 0:03:47]} 22. Nxe6 {[%emt 0:03:40]} ({White should play} 22. Bf3 $14) 22... Bxe6 {[%emt 0:00:08]} 23. Rxc6 {[%emt 0:00:05]} Rxb3 {[%emt 0:00:06]} 24. Bc3 {[%emt 0:02:40]} Rdb8 {[%emt 0:00:35]} 25. Ba5 {[%emt 0:07:17]} Ra3 {[%emt 0:06:54]} 26. Rcc1 {[%emt 0:01:16]} Rxa1 {[%emt 0:00:21]} 27. Rxa1 {[%emt 0:00:06]} Rb3 {[%emt 0:00:14]} 28. Kf1 {[%emt 0:03:04]} Ra3 {[%emt 0:00:33]} 29. Rxa3 {[%emt 0:00:11]} Bxa3 {[%emt 0:00:03]} 30. Ke2 {[%emt 0:06:37]} Kf8 {[%emt 0:00:25]} 31. Kd3 {[%emt 0:02:29]} Ke7 {[%emt 0:00:12]} 32. Kc3 {[%emt 0:00:57]} Kd7 {[%emt 0:01:59]} 33. Bb4 {[%emt 0:01:18]} Bxb4+ {[%emt 0:00:25]} 34. Kxb4 {[%emt 0:00:06]} Kc6 {[%emt 0:00:23]} 35. Ka5 {[%emt 0:00:04]} Bc8 {[%emt 0:01:24]} 36. f3 {[%emt 0:05:48]} f5 {[%emt 0:00:36]} 37. Bf1 {[%emt 0:00:29]} Kd6 {[%emt 0:01:03]} 38. Ba6 {[%emt 0:01:23]} Be6 $16 {[%emt 0:01:27]} 39. Bb7 {[%emt 0:00:22]} Bd7 {[%emt 0:08:26]} 40. Ka6 {[%emt 0:00:37]} Ba4 {[%emt 0:00:16]} 41. Kxa7 {[%emt 0:03:00]} Bd1 {[%emt 0:03:11]} 42. f4 {[%emt 0:01:43]} Bf3 {[%emt 0:00:11]} 43. Kb8 {[%emt 0:00:07]} Bd1 {[%emt 0:00:13]} 44. Kc8 {[%emt 0:00:07]} Ba4 {[%emt 0:00:11]} 45. Kd8 {[%emt 0:00:10]} Bb5 {[%emt 0:00:17]} 46. Bc8 {[%emt 0:00:24]} Ba4 {[%emt 0:01:00]} 47. h3 {[%emt 0:01:03]} h5 {[%emt 0:01:02]} 48. g4 {[%emt 0:03:44]} fxg4 {[%emt 0:01:25]} 49. hxg4 {[%emt 0:00:04]} hxg4 {[%emt 0:00:21]} 50. Bxg4 {[%emt 0:00:06]} Bc6 {[%emt 0:00:18]} 51. Be2 {[%emt 0:00:24]} Ke6 {[%emt 0:00:38]} 52. Bd3 {[%emt 0:00:13]} Kf6 {[%emt 0:00:07]} 53. Kc7 {[%emt 0:00:11]} Be8 {[%emt 0:00:01]} 54. Kd6 {[%emt 0:00:14]} Bf7 {[%emt 0:00:15]} 55. Bb1 {[%emt 0:00:47]} g5 {[%emt 0:02:10]} 56. fxg5+ {[%emt 0:00:07]} Kxg5 {[%emt 0:00:01]} 57. Ba2 {[%emt 0:00:15]} Kf6 {[%emt 0:00:28]} 58. Bxd5 {[%emt 0:00:07]} Be8 {[%emt 0:00:07]} 59. e4 {[%emt 0:00:06]} Ba4 {[%emt 0:00:26]} 60. e5+ {[%emt 0:00:29]} Kf5 {[%emt 0:00:10]} 61. Bc6 {[%emt 0:00:31]} Bb3 {[%emt 0:00:12]} 62. d5 {[%emt 0:00:15]} Bc4 {[%emt 0:00:13]} 63. Bd7+ {[%emt 0:00:16]} 1-0

[Event "IV Torneo de Semana Santa"]
[Site "Los Llanos de Aridane"]
[Date "2019.04.17"]
[Round "7.7"]
[White "Morcuende Hurtado, Miguel Angel"]
[Black "Molina Rodriguez, Borja"]
[Result "0-1"]
[ECO "A29"]
[WhiteElo "1602"]
[BlackElo "2070"]
[Annotator "NA"]
[PlyCount "88"]
[EventDate "2019.04.13"]
[EventType "swiss"]
[EventCountry "ESP"]
[SourceTitle "playchess.com"]
[Source "ChessBase"]
[SourceQuality "1"]
[TimeControl "5400+30"]

1. c4 {[%emt 0:00:00]} e5 {[%emt 0:00:00]} 2. Nc3 {[%emt 0:00:00]} Nf6 {[%emt 0:00:29]} 3. d3 {[%emt 0:00:01]} d5 {[%emt 0:02:14]} 4. cxd5 {[%emt 0:00:08]} Nxd5 {[%emt 0:00:11]} 5. Bd2 {[%emt 0:02:30]} Be7 {[%emt 0:02:00]} 6. Nf3 {[%emt 0:01:59]} Nc6 {[%emt 0:00:36]} 7. g3 {[%emt 0:00:16]} O-O {[%emt 0:01:16]} 8. Bg2 {[%emt 0:00:07]} Be6 {[%emt 0:05:41]} 9. O-O {[%emt 0:00:36]} Nb6 {[%emt 0:01:05]} 10. h3 {[%emt 0:04:00] A29: English Opening: Four Knights Variation with 4 g3} (10. a4 a5 11. Nb5 f6 12. Rc1 Rf7 13. Qc2 Bb4 14. Bc3 Rd7 15. Rfd1 Qe7 16. d4 e4 17. Nd2 f5 {0-1 (60) Milos,G (2583)-Carlsen,M (2881) Caxias do Sul 2014}) 10... f6 $146 {[%emt 0:03:02]} ({Predecessor:} 10... f5 11. a3 Bf6 12. Rc1 Kh8 13. b4 e4 14. dxe4 fxe4 15. Nxe4 Bb2 16. Nc5 Bc8 17. Rb1 Bf6 {1-0 (41) Gilfillan,A (1950)-Brett,A (2106) England 2015}) 11. Be3 {[%emt 0:08:53]} Qd7 {[%emt 0:01:35]} 12. Kh2 {[%emt 0:00:08]} Nd4 {[%emt 0:01:50]} 13. Ng1 {[%emt 0:04:49]} c5 {[%emt 0:10:16]} 14. f4 {[%emt 0:04:53]} exf4 {[%emt 0:02:37]} 15. Bxf4 {[%emt 0:00:32]} Rad8 {[%emt 0:03:59]} 16. b3 {[%emt 0:13:53]} Rfe8 {[%emt 0:07:27]} 17. Rc1 {[%emt 0:00:22]} Rc8 {[%emt 0:11:49]} 18. Nf3 {[%emt 0:14:21]} a5 {[%emt 0:01:55]} 19. e4 {[%emt 0:04:06]} Red8 {[%emt 0:06:44]} 20. Nxd4 {[%emt 0:03:53]} cxd4 {[%emt 0:00:19]} 21. Ne2 $11 {[%emt 0:00:32]} Ba3 {[%emt 0:03:34]} 22. Rxc8 {[%emt 0:03:43]} Rxc8 {[%emt 0:03:55]} 23. Bc1 {[%emt 0:00:11]} Bxc1 {[%emt 0:00:30]} 24. Nxc1 {[%emt 0:00:30]} a4 {[%emt 0:04:50]} 25. b4 {[%emt 0:04:21]} a3 {[%emt 0:00:27]} 26. Rf2 {[%emt 0:02:52]} Na4 27. Nb3 {[%emt 0:03:21]} Nb2 {[%emt 0:06:20]} 28. Qb1 {[%emt 0:00:00]} Bxb3 {[%emt 0:01:21]} 29. axb3 {[%emt 0:02:23]} Qb5 {[%emt 0:04:36]} 30. Bf1 {[%emt 0:00:00]} Rc3 {[%emt 0:00:30]} 31. Rxb2 {[%emt 0:05:24]} axb2 {[%emt 0:00:07]} 32. Qxb2 {[%emt 0:00:07]} Qxb4 {[%emt 0:00:40]} 33. Qa2 {[%emt 0:00:19]} Kf7 {[%emt 0:01:56]} 34. h4 {[%emt 0:01:10]} Qxb3 {[%emt 0:01:06]} 35. Qa5 {[%emt 0:00:09]} Qe6 {[%emt 0:02:39]} 36. Qb5 {[%emt 0:02:29]} b6 {[%emt 0:01:43]} 37. Bh3 {[%emt 0:01:34]} Rc2+ {[%emt 0:00:44]} 38. Bg2 {[%emt 0:00:02]} g6 {[%emt 0:01:13]} 39. Qa4 {[%emt 0:00:28]} Qa2 {[%emt 0:02:42]} 40. Qd7+ {[%emt 0:04:36]} Kg8 {[%emt 0:00:10]} 41. Qe8+ {[%emt 0:01:43]} Kg7 {[%emt 0:00:11]} 42. Qe7+ {[%emt 0:00:02]} Kh6 {[%emt 0:01:18]} 43. Qxf6 {[%emt 0:00:20]} Rxg2+ {[%emt 0:00:10]} 44. Kh3 {[%emt 0:00:06]} Rh2+ {[%emt 0:00:10]} 0-1

[Event "IV Torneo de Semana Santa"]
[Site "Los Llanos de Aridane"]
[Date "2019.04.17"]
[Round "7.8"]
[White "Martin Rodriguez, Pablo"]
[Black "Cruz Diaz, Felipe"]
[Result "1-0"]
[ECO "A90"]
[WhiteElo "2002"]
[BlackElo "1655"]
[Annotator "NA"]
[PlyCount "95"]
[EventDate "2019.04.13"]
[EventType "swiss"]
[EventCountry "ESP"]
[SourceTitle "playchess.com"]
[Source "ChessBase"]
[SourceQuality "1"]
[TimeControl "5400+30"]

1. c4 {[%emt 0:00:00]} e6 {[%emt 0:00:00]} 2. Nf3 {[%emt 0:00:00]} f5 {[%emt 0:00:04]} 3. d4 {[%emt 0:00:31]} Nf6 {[%emt 0:00:14]} 4. g3 {[%emt 0:00:35]} d5 {[%emt 0:00:29]} 5. Bg2 {[%emt 0:00:12]} c6 {[%emt 0:00:17]} 6. O-O {[%emt 0:00:12]} Bd6 {[%emt 0:01:10]} 7. b3 {[%emt 0:02:10]} Qe7 {[%emt 0:01:18]} 8. a4 {[%emt 0:00:13]} Na6 {[%emt 0:01:07]} 9. Ba3 {[%emt 0:00:20]} Bb4 {[%emt 0:03:00]} 10. Bxb4 {[%emt 0:03:36]} Nxb4 {[%emt 0:00:11]} 11. a5 {[%emt 0:01:02]} c5 {[%emt 0:03:23]} 12. Na3 {[%emt 0:14:24]} Bd7 {[%emt 0:03:20]} 13. Ne5 {[%emt 0:00:37]} Bc6 {[%emt 0:05:32]} 14. Nc2 {[%emt 0:14:13]} Nxc2 {[%emt 0:08:59]} 15. Qxc2 {[%emt 0:00:12]} cxd4 {[%emt 0:02:27]} 16. Qb2 {[%emt 0:08:06]} O-O {[%emt 0:05:29]} 17. Qxd4 {[%emt 0:00:12]} Rfd8 {[%emt 0:01:17]} 18. Qb2 {[%emt 0:01:24]} Ne4 {[%emt 0:02:42]} 19. e3 {[%emt 0:08:52]} Qb4 {[%emt 0:05:18]} 20. Nxc6 {[%emt 0:14:01]} bxc6 {[%emt 0:00:13]} 21. Qe5 {[%emt 0:00:52]} Qd6 {[%emt 0:07:37]} 22. Qxd6 {[%emt 0:03:19]} Rxd6 {[%emt 0:00:51]} 23. Bxe4 {[%emt 0:00:23]} dxe4 {[%emt 0:01:19]} 24. b4 {[%emt 0:01:32]} Rb8 {[%emt 0:01:53]} 25. Rab1 {[%emt 0:00:11]} a6 {[%emt 0:00:53]} 26. Rb2 {[%emt 0:01:33]} Rd3 {[%emt 0:02:20]} 27. Rfb1 {[%emt 0:00:06]} Ra3 {[%emt 0:00:58]} 28. Kf1 {[%emt 0:08:25]} Kf7 {[%emt 0:00:38]} 29. Ke2 {[%emt 0:00:32]} Kf6 {[%emt 0:01:05]} 30. h4 {[%emt 0:01:02]} h6 {[%emt 0:01:26]} 31. Rb3 {[%emt 0:00:41]} Ra2+ {[%emt 0:00:43]} 32. R1b2 {[%emt 0:00:43]} Rxb2+ {[%emt 0:02:47]} 33. Rxb2 {[%emt 0:00:05]} g5 {[%emt 0:02:19]} 34. hxg5+ {[%emt 0:00:08]} hxg5 {[%emt 0:00:10]} 35. Kd2 {[%emt 0:00:46]} Ke5 {[%emt 0:02:09]} 36. Kc3 {[%emt 0:00:26]} f4 {[%emt 0:02:01]} 37. gxf4+ {[%emt 0:00:45]} gxf4 {[%emt 0:00:09]} 38. exf4+ {[%emt 0:00:21]} Kxf4 {[%emt 0:00:05]} 39. Kd4 {[%emt 0:00:10]} Rh8 {[%emt 0:09:56]} 40. Kc5 {[%emt 0:05:15]} Rh2 {[%emt 0:00:41]} 41. b5 {[%emt 0:03:16]} cxb5 {[%emt 0:02:20]} 42. cxb5 {[%emt 0:00:09]} axb5 {[%emt 0:00:13]} 43. a6 {[%emt 0:00:09]} Kf3 {[%emt 0:05:47]} 44. a7 {[%emt 0:01:22]} Rh8 {[%emt 0:00:10]} 45. Kxb5 {[%emt 0:02:21]} e5 {[%emt 0:02:34]} 46. Kc5 {[%emt 0:00:14]} e3 {[%emt 0:01:52]} 47. fxe3 {[%emt 0:00:12]} Kxe3 {[%emt 0:00:04]} 48. Rb8 {[%emt 0:00:09]} 1-0

[Event "IV Torneo de Semana Santa"]
[Site "Los Llanos de Aridane"]
[Date "2019.04.17"]
[Round "7.9"]
[White "Leon Varela, Luis"]
[Black "Rodriguez Falcon, Jesus Manuel"]
[Result "1-0"]
[ECO "A34"]
[WhiteElo "2154"]
[BlackElo "1936"]
[Annotator "NA"]
[PlyCount "64"]
[EventDate "2019.04.13"]
[EventType "swiss"]
[EventCountry "ESP"]
[SourceTitle "playchess.com"]
[Source "ChessBase"]
[SourceQuality "1"]
[TimeControl "5400+30"]

1. Nf3 {[%emt 0:00:27]} c5 {[%emt 0:02:28]} 2. g3 {[%emt 0:05:33]} g6 {[%emt 0:00:44]} 3. c4 {[%emt 0:02:31]} Bg7 {[%emt 0:00:14]} 4. Nc3 {[%emt 0:00:04]} b6 {[%emt 0:00:31]} 5. b3 {[%emt 0:00:57]} Bb7 {[%emt 0:00:08]} 6. Bg2 {[%emt 0:00:01]} d6 {[%emt 0:00:39]} 7. Bb2 {[%emt 0:02:14]} Nc6 {[%emt 0:02:58]} 8. O-O {[%emt 0:04:16]} Nh6 {[%emt 0:01:32]} 9. e3 {[%emt 0:02:38]} O-O {[%emt 0:00:47]} 10. d4 {[%emt 0:11:11]} a6 {[%emt 0:12:22]} 11. Qd2 {[%emt 0:13:51]} Nf5 {[%emt 0:06:24]} 12. d5 {[%emt 0:19:13]} Ne5 $16 {[%emt 0:03:40]} 13. Nxe5 {[%emt 0:01:23]} dxe5 {[%emt 0:01:37]} 14. Qe2 {[%emt 0:10:09]} Qc7 {[%emt 0:09:33]} 15. Rad1 {[%emt 0:02:27]} Rad8 {[%emt 0:00:22]} 16. Ne4 {[%emt 0:15:55]} h6 {[%emt 0:00:46]} 17. Rde1 {[%emt 0:02:37]} Kh7 {[%emt 0:01:27]} 18. h4 {[%emt 0:01:20]} Nd6 {[%emt 0:01:03]} 19. h5 {[%emt 0:00:21]} Nf5 {[%emt 0:05:00]} 20. g4 {[%emt 0:01:42]} Nh4 {[%emt 0:03:21]} 21. Bh1 {[%emt 0:00:06]} f5 {[%emt 0:00:19]} 22. hxg6+ {[%emt 0:00:00]} Nxg6 {[%emt 0:00:22]} 23. gxf5 {[%emt 0:00:00]} Rxf5 {[%emt 0:00:14]} 24. Ng3 {[%emt 0:00:00]} Rg5 {[%emt 0:02:51]} 25. Be4 {[%emt 0:00:02]} Bc8 {[%emt 0:01:40]} 26. Kg2 {[%emt 0:00:26]} Kg8 {[%emt 0:00:36]} 27. Rh1 {[%emt 0:00:23]} Bg4 {[%emt 0:02:13]} 28. Qc2 {[%emt 0:01:17]} Qd6 {[%emt 0:01:55]} 29. Reg1 {[%emt 0:02:26]} Rf8 {[%emt 0:00:52]} 30. Kf1 {[%emt 0:00:45]} Bf3 {[%emt 0:00:47]} 31. Bxf3 {[%emt 0:00:03]} Rxf3 {[%emt 0:00:08]} 32. Ne4 {[%emt 0:00:27]} Rf8 {[%emt 0:04:45]} 1-0